Cogmind - Beta 12 @@@ ROGUE MODE // 2023.09.23 @ 15:07:42 Player: Zirov Result: Self-destructed Performance ------------- Evolutions (3) 1500 Regions Visited (8) 1600 Robots Destroyed (125) 625 Value Destroyed (3297) 3297 Prototype IDs (35) 700 Alien Tech Used (0) 0 Bonus (302) 302 TOTAL SCORE: 8024 Bonus ------- High Alert Combat Kills 2 Aligned with FarCom 300 Cogmind --------- Core Integrity 533/700 Matter 280/300 Energy 290/290 System Corruption 2% Temperature Cool (0) Movement Walking (100) Location -7/Factory Parts ------- > --- POWER (1) -------- Improved Deuterium Engine > --- PROPULSION (3) --- Improved Carbon-fiber Leg Potential Leg Potential Leg > --- UTILITY (7) ------ High-capacity Storage Unit Advanced Visual Processing Unit Melee Analysis Suite Core Analyzer Improved Medium Armor Plating Reflective Plating Hacking Suite > --- WEAPON (2) ------- Mini Grenade Launcher (fused) Katana > --- INVENTORY (20) --- Light Nuclear Core Enhanced Nuclear Core Titanium Leg Titanium Leg Titanium Leg Titanium Leg Improved Carbon-fiber Leg Improved Titanium Leg Target Analyzer Transmission Jammer Insulated Plating Powered Armor Hacking Suite System Shield Tractor Beam Enhanced Autogun Improved Grenade Launcher Improved Datajack Heavy Flail Peak State ------------ > --- POWER ------------ Improved Deuterium Engine > --- PROPULSION ------- Improved Carbon-fiber Leg Potential Leg Potential Leg > --- UTILITY ---------- High-capacity Storage Unit Advanced Visual Processing Unit Melee Analysis Suite Core Analyzer Improved Medium Armor Plating Reflective Plating Hacking Suite > --- WEAPON ----------- Mini Grenade Launcher Katana > --- INVENTORY -------- Light Nuclear Core Enhanced Nuclear Core Titanium Leg Titanium Leg Titanium Leg Titanium Leg Improved Carbon-fiber Leg Improved Titanium Leg High-capacity Matter Pod Target Analyzer Transmission Jammer Insulated Plating Powered Armor Hacking Suite System Shield Tractor Beam Enhanced Autogun Improved Grenade Launcher Improved Datajack Heavy Flail [Rating: 60] Favorites ----------- Power Improved Deuterium Engine Engine Improved Deuterium Engine Power Core Light Nuclear Core Propulsion Potential Leg Leg Potential Leg Flight Unit Improved Flight Unit Utility Melee Analysis Suite Device Improved Terrain Scanner Storage High-capacity Storage Unit Processor Melee Analysis Suite Hackware Hacking Suite Protection Hardened Medium Armor Plating Weapon Katana Energy Gun Small Laser Ballistic Gun Heavy Assault Rifle Ballistic Cannon Improved Light Cannon Launcher Mini Grenade Launcher Impact Weapon Heavy Flail Slashing Weapon Katana Special Melee Weapon Improved Datajack Build | -11 -10 -10 -9 -9 -9 -8 -8 -7 ------- Run | Jun Mat Min Mat Min Exi Min Mat Fac Slots Evolved 6 | . . . 2 . . . 2 2 Power . | . . . . . . . . . Propulsion 1 | . . . 1 . . . . . Utility 5 | . . . 1 . . . 2 2 Weapon . | . . . . . . . . . Parts Attached 121 | 7 18 8 40 12 3 4 18 11 Power 10 | 1 2 . 5 1 . . 1 . Engine 9 | 1 2 . 5 . . . 1 . Core 1 | . . . . 1 . . . . Reactor . | . . . . . . . . . Propulsion 29 | 2 6 5 12 . 2 . 1 1 Treads . | . . . . . . . . . Leg 28 | 2 5 5 12 . 2 . 1 1 Wheel . | . . . . . . . . . Hover . | . . . . . . . . . Flight 1 | . 1 . . . . . . . Utility 49 | 2 3 1 13 6 1 1 14 8 Device 13 | 2 1 . 3 3 . . 4 . Storage 3 | . 1 1 . . 1 . . . Processor 8 | . . . 1 1 . . 2 4 Hackware 3 | . 1 . 1 . . . . 1 Protection 22 | . . . 8 2 . 1 8 3 Artifact . | . . . . . . . . . Weapon 33 | 2 7 2 10 5 . 3 2 2 Energy Gun 1 | 1 . . . . . . . . Energy Cannon . | . . . . . . . . . Ballistic Gun 16 | 1 3 . 9 2 . 1 . . Ballistic Cannon 4 | . 2 2 . . . . . . Launcher 8 | . 2 . . 2 . 2 1 1 Special Weapon . | . . . . . . . . . Impact Weapon 1 | . . . . . . . . 1 Slashing Weapon 2 | . . . 1 1 . . . . Piercing Weapon . | . . . . . . . . . Special Melee Weapon 1 | . . . . . . . 1 . Unidentified Prototypes 3 | . 1 . . . . . 2 . Parts Lost 9 | . . 3 3 . . . 2 1 Power 2 | . . 1 1 . . . . . Propulsion 2 | . . 1 1 . . . . . Utility 4 | . . . 1 . . . 2 1 Weapon 1 | . . 1 . . . . . . Highest Loss Streak 2 | . . 1 2 . . . 1 1 To Critical Strikes . | . . . . . . . . . Average Slot Usage (%) 98 | . 99 87 98 99 100 100 99 99 Engine 6 | . 14 2 10 . . . 4 7 Core 2 | . . . . 10 11 11 4 . Leg 28 | . 28 28 32 33 33 33 27 23 Device 4 | . 16 . . 7 11 7 4 . Storage 9 | . 5 14 11 11 11 11 9 7 Processor 9 | . . . 2 11 11 11 11 19 Hackware 4 | . 6 14 6 . . . . 6 Protection 10 | . . . 11 3 . 3 19 18 Ballistic Gun 8 | . 15 10 21 7 11 6 . . Ballistic Cannon 2 | . 8 17 . . . . . . Launcher 3 | . . . . 4 . 4 8 5 Slashing Weapon 5 | . . . . 10 11 11 9 7 Naked Turns . | . . . . . . . . . Heaviest Build 75 | 9 20 28 39 38 51 57 73 75 Greatest Support 78 | 20 20 20 39 39 73 73 77 78 Greatest Overweight (x) 1 | . . 1 1 . . . . . Average Overweight (x) . | . . . . . . . . . Largest Inventory Capacity 20 | 5 10 15 15 15 20 20 20 20 Average Capacity 15 | 5 7 10 15 15 15 20 20 20 Most Carried 20 | 3 10 13 15 15 15 16 20 20 Average Carried 14 | 1 6 10 14 14 15 15 18 19 Final Capacity 20 | 5 10 15 15 15 20 20 20 20 Final Carried 20 | 3 10 13 15 15 15 16 20 19 Class Distribution -------------------- 57% | Mutant 26% | Scavenger-Mutant 15% | Assassin Dominant Class ---------------- Scavenger-Mutant | -10/Materials Scavenger-Mutant | -10/Mines Scavenger-Mutant | -9/Materials Mutant | -9/Mines Mutant | -9/Exiles Assassin | -8/Mines Assassin | -8/Materials Mutant | -7/Factory Resources | -11 -10 -10 -9 -9 -9 -8 -8 -7 ----------- Run | Jun Mat Min Mat Min Exi Min Mat Fac Matter Collected 2815 | 281 366 282 953 417 . 66 321 129 Remotely 63 | . . . . 11 . . 52 . Salvage Created 3891 | 72 449 280 1389 159 . 57 761 724 Parts 276 | 8 36 10 109 15 . 14 46 38 Haulers Intercepted 9 | . 2 . 4 . . . 2 1 Recyclers Shooed 2 | . . 1 1 . . . . . Parts Field Recycled . | . . . . . . . . . Retrieved Matter . | . . . . . . . . . Parts Self-Destructed . | . . . . . . . . . Prevented . | . . . . . . . . . Kills | -11 -10 -10 -9 -9 -9 -8 -8 -7 ------- Run | Jun Mat Min Mat Min Exi Min Mat Fac Combat Hostiles Destroyed 90 | . 13 8 25 9 . 8 11 16 Melee 25 | . . . . 2 . . 11 12 Guns 39 | . 8 3 25 3 . . . . Cannons 6 | . 1 5 . . . . . . AOE 19 | . 4 . . 4 . 8 . 3 Classes Destroyed 14 | 1 6 1 3 . . . . 3 Worker 4 | . 2 . 1 . . . . 1 Builder 2 | . . . 1 . . 1 . . Tunneler 5 | 4 . 1 . . . . . . Hauler 9 | . 2 . 4 . . . 2 1 Recycler 1 | . . . 1 . . . . . Operator 3 | . 1 . 2 . . . . . Watcher 11 | . 3 . 5 . . . 2 1 Swarmer 33 | . 6 . 7 7 . 8 . 5 Grunt 34 | . 7 6 8 1 . . 6 6 Brawler 1 | . . . . . . . . 1 Duelist 2 | . . . 1 1 . . . . Sentry 16 | . . 2 9 . . . 5 . Hunter 2 | . . . . . . . . 2 Programmer 2 | . . . . . . . . 2 Best Kill Streak 5 | 1 3 2 4 5 . 4 3 3 Combat Bots Only 5 | . 3 2 3 5 . 4 3 3 Max Kills in Single Turn 2 | 1 2 1 2 2 . 2 1 2 Gunslinging 1 | . . . 1 . . . . . Exploded 2 | . 2 . . 2 . 2 . 2 Melee 1 | . . . . 1 . . 1 1 Uniques/NPCs Destroyed . | . . . . . . . . . Combat | -11 -10 -10 -9 -9 -9 -8 -8 -7 -------- Run | Jun Mat Min Mat Min Exi Min Mat Fac Damage Taken 4422 | . 276 825 1364 207 . 89 613 1048 Core 608 | . 33 138 119 51 . . 100 167 Absorbed by Shields . | . . . . . . . . . Redirected to Shielding 148 | . . . 42 . . . 106 . Regen/Repaired (Parts) 308 | . 20 . 231 . . . . 57 Core Remaining (%) 67 | 100 . 31 . . . 57 81 . Volleys Fired 232 | 16 45 48 103 10 . 7 . 3 Largest 2 | 2 2 2 2 2 . 1 . 1 Hottest 78 | 60 69 78 50 50 . 30 . 30 Shots Fired 430 | 32 80 83 207 18 . 7 . 3 Gun 358 | 32 64 41 207 14 . . . . Cannon 54 | . 12 42 . . . . . . Launcher 18 | . 4 . . 4 . 7 . 3 Special . | . . . . . . . . . Kinetic 391 | 16 71 83 207 14 . . . . Thermal 21 | 16 5 . . . . . . . Explosive 18 | . 4 . . 4 . 7 . 3 Electromagnetic . | . . . . . . . . . Robot Hit Streak 30 | 4 13 10 30 3 . 1 . . Robot Miss Streak 5 | 4 2 3 4 3 . 3 . 5 Penetration Max . | . . . . . . . . . Secondary Targets 8 | . . . 7 1 . . . . Max Gunslinging Chain 1 | . . . 1 1 . . . . Shots Hit Robots 376 | 17 47 56 150 10 . 2 48 46 Core Hits 164 | 7 31 18 55 11 . 7 16 19 Critical Kills 1 | . . . 1 . . . . . Critical Parts Destroyed 3 | . . . 2 . . . . 1 Critical Strikes 12 | . . 1 3 . . . 4 4 Destroy 3 | . . . 3 . . . . . Blast 1 | . . 1 . . . . . . Smash 1 | . . . . . . . . 1 Sever 7 | . . . . . . . 4 3 Melee Attacks 143 | . . . 1 5 . 1 70 66 Impact 9 | . . . . . . . . 9 Slashing 130 | . . . 1 5 . 1 66 57 Piercing . | . . . . . . . . . Sneak Attacks 11 | . . . . . . 1 7 3 Combat Hostiles 1 | . . . . . . . 1 . Follow-up Attacks 3 | . . . . . . . . 3 Damage Inflicted 8905 | 161 1077 848 2363 374 . 547 1650 1885 Guns 3284 | 161 402 250 2358 113 . . . . Cannons 789 | . 191 598 . . . . . . Explosions 1324 | . 481 . . 145 . 484 . 214 Melee 3500 | . . . . 116 . 63 1650 1671 Ramming 8 | . 3 . 5 . . . . . Kinetic 3924 | 57 548 848 2358 113 . . . . Thermal 149 | 104 45 . . . . . . . Explosive 1324 | . 481 . . 145 . 484 . 214 Electromagnetic . | . . . . . . . . . Impact 236 | . . . . . . . . 236 Slashing 3264 | . . . . 116 . 63 1650 1435 Piercing . | . . . . . . . . . Highest Corruption 2 | . 1 1 2 2 2 2 . 2 Average Corruption 1 | . 1 1 2 2 2 2 . 1 Corruption Purged . | . . . . . . . . . Corruption Blocked . | . . . . . . . . . Effects 49 | . 4 4 12 10 2 4 . 13 Message Errors 15 | . 2 2 1 4 . 2 . 4 Matter Fused 5 | . . . 3 . . 1 . 1 Heat Flow Errors 6 | . . 2 1 1 . 1 . 1 Energy Discharges 8 | . 1 . 2 2 1 . . 2 Parts Rejected 1 | . 1 . . . . . . . Parts Fused 1 | . . . . . . . . 1 Data Loss (minor) 5 | . . . 2 . 1 . . 2 Data Loss (major) 2 | . . . . . . . . 2 Misfires 3 | . . . 2 1 . . . . Alerts 2 | . . . . 2 . . . . Weapon Failures 1 | . . . 1 . . . . . Overload Shots . | . . . . . . . . . Overflow Damage 273 | . 71 . . . . 61 47 94 Projectiles 26 | . 26 . . . . . . . Explosions 73 | . 45 . . . . 28 . . Melee 174 | . . . . . . 33 47 94 Knockbacks 6 | . 1 3 . . . . . 2 Impact 2 | . . . . . . . . 2 Kinetic 4 | . 1 3 . . . . . . Secondary . | . . . . . . . . . Self-Inflicted Damage 32 | . 3 . . . . 29 . . Shots 2 | . 1 . . . . 1 . . Rammed . | . . . . . . . . . Targets Rammed 2 | . 1 . 1 . . . . . Kicked 2 | . 1 . 1 . . . . . Crushed . | . . . . . . . . . Highest Temperature 224 | 40 40 218 208 224 . 173 13 223 Average Temperature 43 | 21 13 71 24 61 . 90 13 70 Received Heat Transfer 1602 | . 81 450 483 12 . . 315 261 Siege Activations . | . . . . . . . . . Robots Corrupted . | . . . . . . . . . Combat Hostiles . | . . . . . . . . . Parts Fried . | . . . . . . . . . Impact Corruptions 1 | . . . . . . . . 1 Robots Melted . | . . . . . . . . . Combat Hostiles . | . . . . . . . . . Parts Melted 2 | 1 . . . . . . . 1 Heat Transferred 325 | 225 100 . . . . . . . Parts Sabotaged . | . . . . . . . . . Parts Stolen . | . . . . . . . . . Parts Stripped . | . . . . . . . . . Power Chain Reactions . | . . . . . . . . . Missiles Intercepted . | . . . . . . . . . Alert | -11 -10 -10 -9 -9 -9 -8 -8 -7 ------- Run | Jun Mat Min Mat Min Exi Min Mat Fac Peak Influence 410 | 20 339 228 410 275 . 130 204 204 Initial 129 | . 13 46 10 129 . . 50 42 Average 125 | 10 146 140 232 202 . 48 67 67 Maximum Alert Level 2 | . 1 1 2 1 . . 1 1 Low Security (%) 75 | 100 54 87 37 53 . 100 99 99 Level 1 22 | . 45 12 51 46 . . . . Level 2 2 | . . . 11 . . . . . Level 3 . | . . . . . . . . . Level 4 . | . . . . . . . . . Level 5 . | . . . . . . . . . High Security . | . . . . . . . . . Max Security . | . . . . . . . . . Squads Dispatched 7 | . 3 . . . . . 1 3 Investigation 4 | . 2 . . . . . 1 1 Extermination 2 | . . . . . . . . 2 Reinforcement 1 | . 1 . . . . . . . Assault . | . . . . . . . . . Garrison . | . . . . . . . . . Intercept . | . . . . . . . . . Searches Triggered . | . . . . . . . . . Construction Impeded . | . . . . . . . . . Haulers Reinforced . | . . . . . . . . . Active Scanning Responses . | . . . . . . . . . Cargo Convoy Interrupts . | . . . . . . . . . Stealth | -11 -10 -10 -9 -9 -9 -8 -8 -7 --------- Run | Jun Mat Min Mat Min Exi Min Mat Fac Distress Signals 1 | . . 1 . . . . . . Communications Jammed . | . . . . . . . . . Distress Signals . | . . . . . . . . . Times Spotted 119 | . 22 8 33 8 . 6 19 23 Peak Tracking Total 5 | . 4 2 4 4 . 4 5 4 Tactical Retreats 3 | . 1 . 2 . . . . . Traps | -11 -10 -10 -9 -9 -9 -8 -8 -7 ------- Run | Jun Mat Min Mat Min Exi Min Mat Fac Traps Triggered 6 | . 1 . 1 . . . 1 3 Indirectly . | . . . . . . . . . Trap Hack Attempts . | . . . . . . . . . Triggered . | . . . . . . . . . Disarmed . | . . . . . . . . . Reprogrammed . | . . . . . . . . . Reused . | . . . . . . . . . Traps Extracted . | . . . . . . . . . Installed . | . . . . . . . . . Triggered . | . . . . . . . . . Machines | -11 -10 -10 -9 -9 -9 -8 -8 -7 ---------- Run | Jun Mat Min Mat Min Exi Min Mat Fac Machines Disabled 7 | . 4 . 1 2 . . . . Max in Single Turn 2 | . 2 . 1 1 . . . . Machines Repaired . | . . . . . . . . . Machines Sabotaged . | . . . . . . . . . Overloaded Fab Kills . | . . . . . . . . . Hacking | -11 -10 -10 -9 -9 -9 -8 -8 -7 --------- Run | Jun Mat Min Mat Min Exi Min Mat Fac Machines Accessed 40 | . 7 . 14 1 1 . 12 5 Terminals 28 | . 5 . 11 . . . 11 1 Fabricators 1 | . . . . . . . . 1 Repair Stations 4 | . 1 . 1 . . . . 2 Recycling Units 3 | . 1 . 1 . . . 1 . Scanalyzers 2 | . . . 1 . . . . 1 Garrison Access . | . . . . . . . . . Total Hacks 116 | . 23 . 45 1 1 . 37 9 Successful 76 | . 14 . 31 1 1 . 22 7 Failed 40 | . 9 . 14 . . . 15 2 Catastrophic 10 | . 2 . 3 . . . 5 . Database Lockouts . | . . . . . . . . . Manual 55 | . 13 . 18 . 1 . 21 2 Terminals 88 | . 17 . 34 . . . 35 2 Fabricators 2 | . . . . . . . . 2 Repair Stations 14 | . 4 . 7 . . . . 3 Recycling Units 6 | . 2 . 2 . . . 2 . Scanalyzers 4 | . . . 2 . . . . 2 Garrison Access . | . . . . . . . . . Terminal Hacks 42 | . 8 . 16 1 1 . 16 . Part Schematic 1 | . . . 1 . . . . . Robot Analysis 4 | . 2 . 1 . . . 1 . Prototype ID Bank 5 | . . . 4 . . . 1 . Open Door 1 | . . . . 1 . . . . Level Access Points 1 | . . . . . . . 1 . Branch Access Points 3 | . . . 1 . . . 2 . Terminal Index 2 | . 1 . . . . . 1 . Alert Level 4 | . . . 4 . . . . . Unreport Threat 3 | . . . 1 . . . 2 . Locate Traps 4 | . 1 . 2 . . . 1 . Security Status 1 | . . . 1 . . . . . Investigation Status 1 | . 1 . . . . . . . Hauler Manifests 3 | . 2 . . . . . 1 . Registered Components 2 | . . . 1 . . . 1 . Zone Layout 6 | . 1 . . . . . 5 . EX-Prototype ID Bank 1 | . . . . . 1 . . . Fabricator Hacks 1 | . . . . . . . . 1 Network Status 1 | . . . . . . . . 1 Repair Station Hacks 11 | . 2 . 7 . . . . 2 Scan Component 6 | . 1 . 4 . . . . 1 Repair 5 | . 1 . 3 . . . . 1 Recycling Unit Hacks 3 | . 1 . 2 . . . . . Process 1 | . . . 1 . . . . . Report Inventory 1 | . . . 1 . . . . . Retrieve Components 1 | . 1 . . . . . . . Scanalyzer 4 | . . . 2 . . . . 2 Insert Component 2 | . . . 1 . . . . 1 Analyze 2 | . . . 1 . . . . 1 Garrison Access Hacks . | . . . . . . . . . Unauthorized Hacks 15 | . 3 . 4 . . . 6 2 Terminals 13 | . 2 . 4 . . . 6 1 Botnet 12 | . 2 . 4 . . . 5 1 Operators 1 | . . . . . . . 1 . Fabricators 1 | . . . . . . . . 1 Download 1 | . . . . . . . . 1 Repair Stations 1 | . 1 . . . . . . . Mechanics 1 | . 1 . . . . . . . Recycling Units . | . . . . . . . . . Scanalyzers . | . . . . . . . . . Garrison Access . | . . . . . . . . . Data Cores Recovered 1 | . . . 1 . . . . . Used . | . . . . . . . . . Hacking Detections 32 | . 5 . 13 . . . 10 4 Full Trace Events 1 | . 1 . . . . . . . Feedback Events 1 | . 1 . . . . . . . Corruption 1 | . 1 . . . . . . . Feedback Blocked . | . . . . . . . . . Robot Schematics Acquired 1 | . . . . . . . . 1 Robots Built . | . . . . . . . . . Authchips . | . . . . . . . . . Time . | . . . . . . . . . Total Robot Build Rating . | . . . . . . . . . Part Schematics Acquired 3 | . . . 2 . . . . 1 Parts Built . | . . . . . . . . . Authchips . | . . . . . . . . . Time . | . . . . . . . . . Total Part Build Rating . | . . . . . . . . . Parts Repaired 5 | . 1 . 3 . . . . 1 Time 160 | . 26 . 96 . . . . 38 Parts Recycled . | . . . . . . . . . Recycled Matter 207 | . . . 207 . . . . . Retrieved Matter . | . . . . . . . . . Retrieved Components 10 | . 10 . . . . . . . Parts Scanalyzed 2 | . . . 1 . . . . 1 Part Schematics Acquired 2 | . . . 1 . . . . 1 Parts Damaged . | . . . . . . . . . Bothacking | -11 -10 -10 -9 -9 -9 -8 -8 -7 ------------ Run | Jun Mat Min Mat Min Exi Min Mat Fac Used RIF Installer . | . . . . . . . . . Robots Hacked 1 | . . . . . . . 1 . Non-combat 1 | . . . . . . . 1 . Combat . | . . . . . . . . . Robot Hacks Applied 1 | . . . . . . . 1 . parse_system 1 | . . . . . . . 1 . Relay Couplers Released . | . . . . . . . . . Fabnet Peak Effective % . | . . . . . . . . . Robots Rewired . | . . . . . . . . . Allies Hacked . | . . . . . . . . . Hacks Repelled . | . . . . . . . . . Allies | -11 -10 -10 -9 -9 -9 -8 -8 -7 -------- Run | Jun Mat Min Mat Min Exi Min Mat Fac Total Allies . | . . . . . . . . . Largest Group . | . . . . . . . . . Highest-Rated Group . | . . . . . . . . . Highest-Rated Ally . | . . . . . . . . . Total Orders . | . . . . . . . . . Ally Attacks . | . . . . . . . . . Total Damage . | . . . . . . . . . Kills . | . . . . . . . . . Allies Corrupted . | . . . . . . . . . Allies Melted . | . . . . . . . . . Intel | -11 -10 -10 -9 -9 -9 -8 -8 -7 ------- Run | Jun Mat Min Mat Min Exi Min Mat Fac Robot Analysis Total 4 | . 2 . 1 . . . 1 . Derelict Logs Recovered 1 | . . 1 . . . . . . Drone Launches . | . . . . . . . . . Drone Recoveries . | . . . . . . . . . Exploration | -11 -10 -10 -9 -9 -9 -8 -8 -7 ------------- Run | Jun Mat Min Mat Min Exi Min Mat Fac Turns Passed 9353 | 193 1380 439 1856 766 263 606 1917 1933 Spaces Moved 6339 | 112 899 211 1049 576 236 477 1384 1395 Core 3 | 3 . . . . . . . . Treads . | . . . . . . . . . Legs 6336 | 109 899 211 1049 576 236 477 1384 1395 Wheels . | . . . . . . . . . Hover . | . . . . . . . . . Flight . | . . . . . . . . . Fastest Speed 50 | 50 120 120 120 120 100 100 100 100 Average Speed 110 | 118 120 127 120 120 109 100 101 100 Slowest Speed 190 | 120 120 190 190 120 120 100 103 103 Overloaded Moves . | . . . . . . . . . Propulsion Burnouts . | . . . . . . . . . Robots Hopped . | . . . . . . . . . Cave-ins Triggered . | . . . . . . . . . Exploration Rate (%) 61 | 5 92 30 91 95 62 73 76 28 Regions Visited 8 Branch Regions 4 Pre-discovered Areas . | . . . . . . . . . Known Exits Taken 2 | . . . 1 . . . 1 . Unknown Exits Taken 6 | 1 1 1 . 1 1 1 . . Scrap Searched 4 | . . 1 . 2 . 1 . . Spaces Dug 25 | . 6 . 1 . . . 16 2 Terrain Destroyed 168 | . 39 2 1 30 . 65 16 15 Melee 19 | . . . 1 . . . 16 2 Projectile 3 | . 1 2 . . . . . . AOE 146 | . 38 . . 30 . 65 . 13 Terrain Rammed . | . . . . . . . . . Walls Destroyed . | . . . . . . . . . Machines Disabled . | . . . . . . . . . Actions | -11 -10 -10 -9 -9 -9 -8 -8 -7 --------- Run | Jun Mat Min Mat Min Exi Min Mat Fac Total 8125 | 140 1129 310 1445 626 241 595 1802 1837 Wait 1133 | 3 138 33 196 13 . 106 293 351 Move 6331 | 111 898 210 1048 575 235 476 1383 1395 Hop . | . . . . . . . . . Pick Up 78 | 3 13 6 22 5 . 1 21 7 Fast Attach 21 | 7 5 . 5 1 . . . 3 Attach 20 | . 1 2 6 1 . . 7 3 Detach 8 | . 1 . 1 2 . . 2 2 Swap 80 | . 12 6 29 10 3 4 11 5 Drop 82 | . 15 5 33 4 3 . 15 7 Fire 232 | 16 45 48 103 10 . 7 . 3 Melee 138 | . . . 1 5 . 1 70 61 Ram . | . . . . . . . . . Kick 2 | . 1 . 1 . . . . . Crush . | . . . . . . . . . Escape Stasis . | . . . . . . . . . Rewire . | . . . . . . . . . Trap . | . . . . . . . . . Miscellaneous . | . . . . . . . . . Route ------- -11/Junkyard -10/Materials (discovered 4 exits: *Mat x3 / [*Min]) -10/Mines -9/Materials (discovered 7 exits: *Mat x3 / *Min x2 / *Sto x2) -9/Mines (discovered 3 exits: *Mat x2 / *Exi) -9/Exiles (discovered 2 exits: [*Min x2]) -8/Mines -8/Materials (discovered 3 exits: *Fac x3) -7/Factory (discovered 1 exit: *Low) History --------- Turn | Location | Event 19 | -11/Junkyard | Discovered new exit (range 15) 194 | -11/Junkyard | Entered Materials 309 | -10/Materials | Build established: Mutant 345 | -10/Materials | Discovered new exit (range 6) 876 | -10/Materials | Discovered new exit (range 5) 1039 | -10/Materials | Build established: Scavenger-Mutant 1276 | -10/Materials | Repaired Grenade Launcher 1337 | -10/Materials | Discovered new exit (range 10) 1431 | -10/Materials | Discovered new exit (range 17) 1574 | -10/Materials | Entered Mines 1630 | -10/Mines | Learned Materials emergency access door positions 1712 | -10/Mines | Received a Rocket Launcher from a helpful Derelict 1727 | -10/Mines | Discovered new exit (range 7) 1916 | -10/Mines | Core integrity fell below 50% 1964 | -10/Mines | Joined a pair of Derelicts in attacking an 0b10 outpost 2013 | -10/Mines | Entered Materials 2013 | -9/Materials | Evolved 2 slots: Propulsion x1, Utility x1 2328 | -9/Materials | Discovered new exit (range 5) 2579 | -9/Materials | Discovered new exit (range 8) 2665 | -9/Materials | Build established: Mutant 2670 | -9/Materials | Discovered new exit (range 4) 2940 | -9/Materials | Discovered new exit (range 5) 3029 | -9/Materials | Discovered new exit (range 16) 3107 | -9/Materials | Discovered new exit (range 3) 3303 | -9/Materials | Build established: Scavenger-Mutant 3360 | -9/Materials | Discovered new exit (range 3) 3511 | -9/Materials | Repaired Imp. Aluminum Leg 3546 | -9/Materials | Repaired Imp. Aluminum Leg 3579 | -9/Materials | Repaired Imp. Aluminum Leg 3674 | -9/Materials | Identified exit to Mines 3674 | -9/Materials | Identified exit to Storage 3869 | -9/Materials | Entered Mines 3878 | -9/Mines | Met a Derelict bent on vengeance 3948 | -9/Mines | Build established: Mutant 3982 | -9/Mines | Deemed a non-threat by the Exiles lab entrance 3982 | -9/Mines | Discovered new exit (range 5) 4022 | -9/Mines | A weapon hastily lodged in a ceiling crevice suddenly fell to the ground 4055 | -9/Mines | Discovered new exit (range 8) 4134 | -9/Mines | Found a damaged Exp. Sensor Array with a note attached 4137 | -9/Mines | Found Prototype Device 4352 | -9/Mines | Found the Drone Emporium 4358 | -9/Mines | Found Prototype Device 4376 | -9/Mines | Discovered new exit (range 7) 4635 | -9/Mines | Entered Exiles 4651 | -9/Exiles | Discovered new exit (range 15) 4665 | -9/Exiles | Met 8R-AWN 4685 | -9/Exiles | Met EX-HEX 4717 | -9/Exiles | Build established: Scavenger-Mutant 4719 | -9/Exiles | Met EX-BIN 4736 | -9/Exiles | Aligned with FarCom system 4737 | -9/Exiles | Given EX-Vault access code 4765 | -9/Exiles | Opened EX-Vault 4773 | -9/Exiles | Found Potential Leg 4776 | -9/Exiles | Found Potential Leg 4798 | -9/Exiles | Warned to stay clear of 0b10 Research branches 4831 | -9/Exiles | Met EX-DEC 4887 | -9/Exiles | Discovered new exit (range 14) 4898 | -9/Exiles | Left Exiles lab with Potential Leg 4898 | -9/Exiles | Entered Mines 4922 | -8/Mines | Discovered new exit (range 6) 5194 | -8/Mines | Build established: Assassin 5504 | -8/Mines | Entered Materials 5504 | -8/Materials | Evolved 2 slots: Utility x2 5504 | -8/Materials | Identified Splice Drone Bay 5505 | -8/Materials | Identified Exp. Sensor Array 6471 | -8/Materials | Discovered new exit (range 10) 6779 | -8/Materials | Identified exit to Factory 6820 | -8/Materials | Build established: Mutant 7111 | -8/Materials | Discovered exit to Factory (range 16) 7421 | -8/Materials | Entered Factory 7421 | -7/Factory | Evolved 2 slots: Utility x2 7611 | -7/Factory | Found Powered Armor 7923 | -7/Factory | Repaired Reflective Plating 8695 | -7/Factory | Discovered new exit (range 4) 9348 | -7/Factory | Identified exit to Lower Caves 9354 | -7/Factory | Self-destructed Last Messages --------------- 08847_ Acquired 20 matter. 08995_ Sneak attack on A-02 Transporter. 08995_ A-02 Transporter destroyed. 08998_ Triggered Shock Trap. 08998_ The floor emits a surge of raw power. 08998_ System corrupted (+1). 09001_ Destroyed Imp. Sensor Array. 09002_ K-01 Serf collects debris. 09064_ System corrupted: Matter fused (-9). 09138_ G-47 Trooper destroyed. 09154_ Acquired 9 matter. 09168_ System corrupted: Component data lost. 09202_ System corrupted: Heat flow error (+245). 09226_ System corrupted: Energy discharge (-63). 09231_ W-25 Informer destroyed. 09236_ Dropped Hcp. Matter Pod. 09236_ Acquired Imp. Signal Interpreter. 09341_ K-01 Serf cleans the Power Conduit. 09348_ EXIT=IDENTIFIED: LOWER CAVES 09349_ Discarded Imp. Signal Interpreter. Map ----- +----------------------------------------------------+ | ???????????#####+########?# #???# | | ???????????# ! #?# """ """ #???# | | ???????????# """ """ #?# """ """ #???# ] | | ???????????# """ """ #?# """ """ #???##+##### | | ???????????# """ """ #?# #????# #???? | | ???????????#= #?# ] = #????# #???? | | ???????????# """ """ #?################## #???? | | ???????????#[ """ """ #?????# # ##??? | | ???????????# """ """ #?????# = # T#??? | | ???????????# #?????# """"""" # #??? | | ???????????# === [ #?????# """"""" + ##??# | | ???????????# === #?????# """"""" # #???# | | ####?????### === #?????# """"""" # ##### | | ???? ##########+######### # # | | """???" # ] # # """"""" ! # # | | """"""" # # # """"""" # # | | """"""" # # ! # """"""" # + | | """"""" # # # """"""" [# # | | # """ """ # # # # | | """"""" # """ """ # #+########+### # | | """"""" # """ """ # > # #???# | | """"""" # # ! # ##### | | """"""" # """ """ # %+ | | + """ """ # # | | # """ """ # ! # | | # #@ # """"""""" # | | ##################+############ # | | ????????# """"""""" [] # | | ??????### [] # | | ? """"""""" [ # | | ? ^ o # | | ? # | | ?? """ """ ###+####################+########### | | ????"" """ ??????????????????# """ #???# | | ???????""" ???????????????????# "R" #???? | | ???????""" ????????????????????# " " """" #???? | | ??????? ?????????????????????# """" #???? | | ?????? ?????????????????????# """" #???? | | ??????""T"??????????????????????# """" #???? | | ??????###???????????????????????# #???? | | ????????????????????????????????# """" """" #???? | | ???????????????????????????Y????# """" """" #???? | | ????????????????????????????????# """" """" #???? | | ????????????????????????????????# """" """" #???? | | ????????????????????????????????# #???? | | ????????????????????????????????##############???? | | ?????????????????????????????????????????????????? | | ?????????????????????????????????????????????????? | | ?????????????????????????????????????????????????? | | ????????????????????????????????????????????????? | +----------------------------------------------------+ Best States ------------- Heat Dissipation 34 Energy Generation 16 Energy Capacity 290 Matter Stores 300 Matter Capacity 300 Sight Range 20 Terrain Scan Range 16 Terrain Scan Density 85 Additional Mass Support 6 Armor Coverage 600 Resistance: TH 10 Resistance: EM 15 Propulsion Shielding 66 Evasion (%) 55 Targeting Accuracy 5 Melee Accuracy 5 Core Analysis 6 Offensive Hacking 10 Item Schematics ----------------- Imp. Aluminum Leg | -9/Materials | Scanalyzed Hcp. Storage Unit | -9/Materials | Hacked Enh. Nuclear Core | -7/Factory | Scanalyzed Robot Schematics ------------------ S-27 Virus | -7/Factory | Downloaded Fabricated ------------ Nothing Alien Tech Used ----------------- None Achievements -------------- Watch This! Challenges ------------ None Game ------ Seed DiametricFlyingInterrupter Manual? 0 Play Time 02:04:33 Cumulative 99.8 hours Start 2023.09.22 @ 22:46:49 End 2023.09.23 @ 15:07:42 Sessions 3 Manual Loads 0 Difficulty Rogue Special Mode None Game No. 104 Rogue 104 Adventurer 0 Explorer 0 Win Type - Total 0 Types 0/0/0/0/0/0/0/0/0 Lore% 37 Gallery% 39 Achievement% 31 Wizard Run 0 Options --------- ASCII 1 Keyboard 1 Movement Numpad Keybinds 0 Fullscreen 1 Font 18/SmallcapsGlow Map View 76x50 Tactical HUD 1 Map Filters NONE Filters NONE Steam 1 RUN: e4acfef9-0406-4af5-8569-2b16ce7342b1